Cogmind - Beta 17 @@@ ROGUE MODE // 2026.08.17 @ 18:31:46 Player: Fedop Result: Destroyed by Explosive Trap Performance ------------- Evolutions (0) 0 Regions Visited (2) 400 Robots Destroyed (25) 125 Value Destroyed (343) 343 Prototype IDs (0) 0 Alien Tech Used (0) 0 Bonus (60) 60 TOTAL SCORE: 928 Bonus ------- Follower Combat Kills 60 Cogmind --------- Core Integrity 0/250 Matter 166/300 Energy 115/125 System Corruption 3% Temperature Cool (0) Movement Rolling (80) Location -10/Mines Parts ------- > --- POWER (1) -------- Light Ion Engine > --- PROPULSION (2) --- Wheel Wheel > --- UTILITY (2) ------ Medium Storage Unit Sensor Array > --- WEAPON (2) ------- Particle Gun > --- INVENTORY (10) --- Ion Engine Wheel Wheel Scrap Suit Small Storage Unit Weight Redist. System Signal Interpreter Heavy Battle Rifle Plasma Cutter Peak State ------------ > --- POWER ------------ Light Ion Engine > --- PROPULSION ------- Wheel Wheel > --- UTILITY ---------- Medium Storage Unit Sensor Array > --- WEAPON ----------- Particle Gun Particle Gun > --- INVENTORY -------- Ion Engine Wheel Wheel Scrap Suit Small Storage Unit Weight Redist. System Signal Interpreter Heavy Battle Rifle Plasma Cutter [Rating: 11] Favorites ----------- Power Light Ion Engine Engine Light Ion Engine Propulsion Wheel Wheel Wheel Flight Unit Flight Unit Utility Small Storage Unit Device Sensor Array Storage Small Storage Unit Protection Backup Plating I Weapon Particle Gun Energy Gun Particle Gun Ballistic Gun Assault Rifle Launcher Grenade Launcher Special Weapon Plasma Cutter Build | -11 -10 -10 ------- Run | Yrd Mat Min Slots Evolved . | . . . Power . | . . . Propulsion . | . . . Utility . | . . . Weapon . | . . . Parts Attached 23 | 7 16 . Power 2 | 1 1 . Engine 2 | 1 1 . Core . | . . . Reactor . | . . . Propulsion 8 | 2 6 . Treads . | . . . Leg . | . . . Wheel 5 | 2 3 . Hover . | . . . Flight 3 | . 3 . Utility 3 | 1 2 . Device 1 | . 1 . Storage 2 | 1 1 . Processor . | . . . Hackware . | . . . Protection . | . . . Artifact . | . . . Weapon 10 | 3 7 . Energy Gun 6 | 2 4 . Energy Cannon . | . . . Ballistic Gun 1 | 1 . . Ballistic Cannon . | . . . Launcher 2 | . 2 . Special Weapon 1 | . 1 . Impact Weapon . | . . . Slashing Weapon . | . . . Piercing Weapon . | . . . Special Melee Weapon . | . . . Unidentified Prototypes . | . . . Parts Lost 7 | . 6 1 Power 1 | . 1 . Propulsion 4 | . 4 . Utility . | . . . Weapon 2 | . 1 1 Highest Loss Streak 4 | . 4 1 To Critical Strikes . | . . . Average Backups 7 | . 7 9 Power 1 | . 1 1 Propulsion 1 | . . 2 Utility 2 | . 2 4 Weapon 2 | . 2 1 Tool/Special . | . . . Unused Backups 12 | . 3 9 Power 1 | . . 1 Propulsion 2 | . . 2 Utility 7 | . 3 4 Weapon 2 | . . 2 Tool/Special . | . . . Average Slot Usage (%) 80 | . 71 99 Engine 10 | . 8 14 Wheel 18 | . 14 28 Flight 4 | . 6 . Device 5 | . 1 14 Storage 14 | . 14 14 Protection 3 | . 5 . Energy Gun 16 | . 10 27 Ballistic Gun 1 | . 1 . Launcher 4 | . 6 . Peak Build Rating 11 | 6 10 11 Average Rating 7 | 4 6 10 On Entrance 5 | . 6 10 Avg Prop Armor Cover (%) . | . . . Naked Turns . | . . . Heaviest Build 20 | 12 20 20 Greatest Support 20 | 20 20 20 Greatest Overweight (x) 3 | . 3 . Average Overweight (x) . | . . . Largest Inventory Capacity 10 | 8 10 10 Average Capacity 8 | 7 8 10 Most Carried 10 | 2 10 10 Average Carried 7 | . 7 9 Final Capacity 10 | 8 10 10 Final Carried 10 | 2 10 10 Class Distribution -------------------- 100% | Mutant Dominant Class ---------------- Mutant | -10/Materials Mutant | -10/Mines Resources | -11 -10 -10 ----------- Run | Yrd Mat Min Matter Collected 544 | 224 256 64 Remotely . | . . . Salvage Created 446 | . 429 17 Parts 38 | . 36 2 Haulers Intercepted 1 | . 1 . Recyclers Shooed 2 | . 2 . Parts Field Recycled . | . . . Retrieved Matter . | . . . Parts Self-Destructed . | . . . Prevented . | . . . Parts Restored . | . . . Kills | -11 -10 -10 ------- Run | Yrd Mat Min Combat Hostiles Destroyed 16 | . 13 3 Guns 4 | . 4 . AOE 12 | . 9 3 Classes Destroyed 8 | . 8 . Worker 1 | . 1 . Builder 2 | . 2 . Tunneler 1 | . 1 . Hauler 1 | . 1 . Recycler 2 | . 2 . Watcher 2 | . 2 . Swarmer 12 | . 9 3 Grunt 4 | . 4 . Best Kill Streak 5 | . 5 3 Combat Bots Only 3 | . 3 3 Max Kills in Single Turn 4 | . 4 2 Gunslinging . | . . . Exploded 3 | . 3 2 Melee . | . . . Uniques/NPCs Destroyed . | . . . Combat | -11 -10 -10 -------- Run | Yrd Mat Min Hostile Shots Fired 85 | . 71 14 Missed 25 | . 21 4 Hits 60 | . 50 10 Projectile 60 | . 50 10 Critical Strikes 1 | . . 1 Damage Taken 774 | . 640 134 Core 279 | . 231 48 Absorbed by Shields . | . . . Core Remaining (%) 100 | 100 . . Volleys Fired 59 | . 52 7 Largest 2 | . 2 2 Hottest 130 | . 130 130 Shots Fired 78 | . 63 15 Gun 59 | . 47 12 Cannon . | . . . Launcher 17 | . 14 3 Special 2 | . 2 . Kinetic 11 | . 11 . Thermal 50 | . 38 12 Explosive 17 | . 14 3 Electromagnetic . | . . . Robot Hit Streak 12 | . 12 1 Robot Miss Streak 3 | . 2 3 Penetration Max . | . . . Secondary Targets . | . . . Shots Hit Robots 45 | . 43 2 Core Hits 38 | . 33 5 Critical Kills . | . . . Critical Parts Destroyed . | . . . Critical Strikes 1 | . 1 . Burn 1 | . 1 . Melee Attacks . | . . . Impact . | . . . Slashing . | . . . Piercing . | . . . Sneak Attacks . | . . . Combat Hostiles . | . . . Follow-up Attacks . | . . . Damage Inflicted 1690 | . 1469 221 Guns 608 | . 576 32 Cannons . | . . . Explosions 1048 | . 859 189 Melee . | . . . Ramming 34 | . 34 . Kinetic 97 | . 97 . Thermal 511 | . 479 32 Explosive 1048 | . 859 189 Electromagnetic . | . . . Impact . | . . . Slashing . | . . . Piercing . | . . . Highest Corruption 3 | . 3 3 Average Corruption 2 | . 2 3 Corruption Purged . | . . . Corruption Blocked . | . . . Effects 5 | . 2 3 Message Errors 3 | . 1 2 Matter Fused 1 | . 1 . Misfires 1 | . . 1 Overload Shots . | . . . Overflow Damage 13 | . 8 5 Projectiles . | . . . Explosions 13 | . 8 5 Melee . | . . . Knockbacks . | . . . Impact . | . . . Kinetic . | . . . Secondary . | . . . Self-Inflicted Damage 108 | . 92 16 Shots 3 | . 2 1 Rammed . | . . . Targets Rammed . | . . . Kicked . | . . . Crushed . | . . . Highest Temperature 545 | . 545 288 Average Temperature 151 | . 166 109 Received Heat Transfer 147 | . 135 12 Effects 8 | . 8 . Shutdowns 2 | . 2 . Energy Bleed 1 | . 1 . Interference 1 | . 1 . Damage (minor) 1 | . 1 . Damage (major) 2 | . 2 . Damage (core) 1 | . 1 . Siege Activations . | . . . Martial Activations . | . . . Shielding Activations . | . . . Robots Disrupted . | . . . Combat Hostiles . | . . . Robots Corrupted . | . . . Combat Hostiles . | . . . Parts Fried . | . . . Impact Corruptions . | . . . Robots Melted . | . . . Combat Hostiles . | . . . Parts Melted . | . . . Heat Transferred 1295 | . 1221 74 Parts Sabotaged . | . . . Parts Stolen . | . . . Parts Stripped . | . . . Power Chain Reactions . | . . . Alert | -11 -10 -10 ------- Run | Yrd Mat Min Maximum Alert Level . | . . . Low Security (%) 100 | 100 100 100 Level 1 . | . . . Level 2 . | . . . Level 3 . | . . . Level 4 . | . . . Level 5 . | . . . High Security . | . . . Max Security . | . . . Peak Influence 179 | . 179 132 Initial 57 | . . 57 Average 68 | . 71 70 Influence Increases 607 | . 464 143 Destroy 0b10 Robot/C 360 | . 260 100 Destroy 0b10 Robot/NC 45 | . 45 . Destroy Leader 76 | . 56 20 Allied During Kill 8 | . . 8 Successful Hack 17 | . 17 . Disable Machine 15 | . 15 . Destroy Structure 86 | . 71 15 Influence Decreases 577 | . 316 261 Entered New Map 91 | . . 91 Time Decay 416 | . 256 160 Lost Part 70 | . 60 10 Squads Dispatched 1 | . 1 . Investigation 1 | . 1 . Extermination . | . . . Reinforcement . | . . . Assault . | . . . Garrison . | . . . Intercept . | . . . Searches Triggered . | . . . Construction Impeded . | . . . Haulers Reinforced . | . . . Active Scanning Responses . | . . . Cargo Convoy Interrupts . | . . . Stealth | -11 -10 -10 --------- Run | Yrd Mat Min Distress Signals 1 | . 1 . Communications Jammed . | . . . Distress Signals . | . . . Times Spotted 22 | . 17 5 Peak Tracking Total 4 | . 4 3 Tactical Retreats . | . . . Traps | -11 -10 -10 ------- Run | Yrd Mat Min Traps Triggered . | . . . Indirectly . | . . . Trap Hack Attempts . | . . . Triggered . | . . . Disarmed . | . . . Reprogrammed . | . . . Reused . | . . . Traps Extracted . | . . . Installed . | . . . Triggered . | . . . Machines | -11 -10 -10 ---------- Run | Yrd Mat Min Machines Disabled 1 | . 1 . Max in Single Turn 1 | . 1 . Machines Repaired . | . . . Machines Dismantled 1 | . 1 . Machines Sabotaged . | . . . Overloaded Fab Kills . | . . . Hacking | -11 -10 -10 --------- Run | Yrd Mat Min Machines Accessed 7 | . 6 1 Terminals 4 | . 4 . Fabricators . | . . . Repair Stations 1 | . 1 . Recycling Units 1 | . 1 . Scanalyzers . | . . . Garrison Access . | . . . Total Hacks 17 | . 16 1 Successful 11 | . 10 1 Failed 6 | . 6 . Catastrophic 3 | . 3 . Database Lockouts . | . . . Manual 11 | . 11 . Terminals 13 | . 13 . Fabricators . | . . . Repair Stations 2 | . 2 . Recycling Units 1 | . 1 . Scanalyzers . | . . . Garrison Access . | . . . Terminal Hacks 6 | . 5 1 Part Schematic 2 | . 2 . Open Door 1 | . . 1 Locate Traps 1 | . 1 . Investigation Status 1 | . 1 . Registered Components 1 | . 1 . Fabricator Hacks . | . . . Repair Station Hacks 1 | . 1 . Refit 1 | . 1 . Recycling Unit Hacks 1 | . 1 . Retrieve Components 1 | . 1 . Scanalyzer . | . . . Garrison Access Hacks . | . . . Unauthorized Hacks 3 | . 3 . Terminals 3 | . 3 . Botnet 3 | . 3 . Fabricators . | . . . Repair Stations . | . . . Recycling Units . | . . . Scanalyzers . | . . . Garrison Access . | . . . Data Cores Recovered . | . . . Used . | . . . Hacking Detections 5 | . 5 . Full Trace Events 2 | . 2 . Feedback Events . | . . . Feedback Blocked . | . . . Robot Schematics Acquired . | . . . Robots Built . | . . . Authchips . | . . . Time . | . . . Total Robot Build Rating . | . . . Part Schematics Acquired 2 | . 2 . Parts Built . | . . . Authchips . | . . . Time . | . . . Total Part Build Rating . | . . . Part Studies Acquired . | . . . Parts Repaired . | . . . Time . | . . . Parts Recycled . | . . . Recycled Matter . | . . . Retrieved Matter . | . . . Retrieved Components 7 | . 7 . Parts Scanalyzed . | . . . Part Schematics Acquired . | . . . Parts Damaged . | . . . Bothacking | -11 -10 -10 ------------ Run | Yrd Mat Min Used RIF Installer . | . . . Robots Hacked . | . . . Non-combat . | . . . Combat . | . . . Robot Hacks Applied . | . . . Relay Couplers Released . | . . . Fabnet Peak Effective % . | . . . Robots Rewired . | . . . Allies Hacked . | . . . Hacks Repelled . | . . . Allies | -11 -10 -10 -------- Run | Yrd Mat Min Total Allies 3 | . . 3 Largest Group 3 | . . 3 Highest-Rated Group 40 | . . 40 Highest-Rated Ally 16 | . . 16 Total Orders . | . . . Ally Attacks 18 | . . 18 Total Damage 193 | . . 193 Kills 2 | . . 2 Allies Corrupted . | . . . Allies Melted . | . . . Intel | -11 -10 -10 ------- Run | Yrd Mat Min Active Infowar (turns) 401 | . 62 339 Sensors 401 | . 62 339 Robot Analysis Total . | . . . Derelict Logs Recovered 2 | . . 2 Drone Launches . | . . . Drone Recoveries . | . . . Exploration | -11 -10 -10 ------------- Run | Yrd Mat Min Turns Passed 1063 | 43 681 339 Spaces Moved 988 | 40 568 380 Core 48 | 4 44 . Treads . | . . . Legs . | . . . Wheels 737 | 36 321 380 Hover . | . . . Flight 203 | . 203 . Fastest Speed 37 | 50 37 80 Average Speed 81 | 77 83 80 Slowest Speed 200 | 80 200 80 Overloaded Moves . | . . . Propulsion Burnouts . | . . . Robots Hopped . | . . . Potential Cave-ins . | . . . Cave-ins Triggered . | . . . Exploration Rate (%) 54 | 3 71 88 Regions Visited 2 Branch Regions 1 Pre-discovered Areas 1 | . . 1 Known Exits Taken . | . . . Unknown Exits Taken 2 | 1 1 . Scrap Searched 1 | . . 1 Spaces Dug . | . . . Terrain Destroyed 90 | . 69 21 Melee . | . . . Projectile . | . . . AOE 90 | . 69 21 Terrain Rammed 6 | . 6 . Walls Destroyed . | . . . Machines Disabled . | . . . Actions | -11 -10 -10 --------- Run | Yrd Mat Min Total 1156 | 48 706 402 Wait 27 | . 22 5 Move 986 | 39 567 380 Hop . | . . . Pick Up 22 | 2 17 3 Fast Attach 14 | 6 8 . Attach 7 | . 6 1 Detach 6 | . 6 . Swap 9 | 1 6 2 Drop 16 | . 12 4 Fire 59 | . 52 7 Melee . | . . . Ram 6 | . 6 . Kick . | . . . Crush . | . . . Escape Stasis . | . . . Rewire . | . . . Trap . | . . . Miscellaneous 4 | . 4 . Route ------- -11/Scrapyard -10/Materials (discovered 3 exits: [*Mat x2] / *Min) -10/Mines (discovered 2 exits: [*Mat] / [*Exi]) History --------- Turn | Location | Event 26 | -11/Scrapyard | Discovered new exit (range 16) 44 | -11/Scrapyard | Entered Materials 252 | -10/Materials | Lost 4 parts (1p2n1w) 266 | -10/Materials | Discovered new exit (range 10) 310 | -10/Materials | Build established: Mutant 420 | -10/Materials | Core integrity fell below 50% 529 | -10/Materials | Discovered new exit (range 5) 544 | -10/Materials | Derelicts attacked the area 585 | -10/Materials | Core integrity fell below 20% 613 | -10/Materials | Discovered new exit (range 13) 725 | -10/Materials | Entered Mines 748 | -10/Mines | Assisted by bots powering up and referring to "LRC-V3" 749 | -10/Mines | Learned location of Storage (-8) 764 | -10/Mines | Discovered new exit (range 8) 813 | -10/Mines | Deemed a non-threat by the Exiles lab entrance 813 | -10/Mines | Discovered new exit (range 5) 919 | -10/Mines | A weapon hastily lodged in a ceiling crevice suddenly fell to the ground 966 | -10/Mines | Found a Scrap Suit stashed away for nefarious purposes 969 | -10/Mines | Found Scrap Suit 1063 | -10/Mines | Met a Derelict who couldn't figure out how to use a Trap Extractor 1064 | -10/Mines | Destroyed by Explosive Trap Last Messages --------------- 00994_ Acquired 8 matter. 00994_ Acquired 7 matter. 01010_ HZ GYJ 4= 9MXZZRY&UMTWI,TMNW/V>NJP PFBW< 01028_ K-01 Serf collects debris. 01042_ Acquired derelict log, extracted data. Data stored: Storage entrances (x1). 01052_ System corrupted: FCS attempts to trigger Particle Gun. 01052_ System corrupted: Particle Gun misfires. 01062_ Connecting with SHOP.Sys... 01062_ Current location identified: Mines >>Open Door Sealed Doors opened. 01063_ L1-LRP(g): "So I found this thing but I have no idea how to use it. And who the hell trapped this place to begin with?!" 01063_ L1-LRP(g): "I give up! Here you try, I'm outta here before something nasty happens..." 01063_ Tosses Imp. Trap Extractor to the ground. 01064_ Dropped Particle Gun. 01064_ Mercenary 1a triggered Explosive Trap. 01064_ An explosion rips through the floor. Map ----- +----------------------------------------------------+ | ?# #######?# #????## ## | | ?# #?# = #????# # | | ?## #?# ########### ##???## | | ??# ### ### ##????????### #????# | | ??## #?#[ ## ##?????????# #????# ] | | ???## #?# # #?????????# ###??# | | ????# ### #?????????# #??# | | ????# # ##????????## #?## # | | ????# # ##????????# ### ## | | ????# * # ##??????## #####? | | ???# = # ^ #??????# ##????? | | ???# ## #??????# ##????? | | ???##### ^ ^ ##??????## #????? | | ???????## ##???????## #???## | | ????????# ##???????# % ##??## | | ????????## ######### #####???# | | ?????????## %##???????# | | ??????????## ### #????????## | | ???????????#####?## ######## #?????????# | | ??????????????????#####??????# ##?????????## | | ?????????????????????????????## ##???????????? | | ?????######??????????######???## #????????????? | | ???### ##????????##""""######?#????????????? | | ???? # #????????#"!=[!"## #????????????? | | ???? #????????#"/! !"## ###????????????? | | ???## #?????????#@gg! ## #??????????##### | | ???# ##???????### #?????????## # | | ???# #???????# gX ##????##### | | ????# ??????### ###### | | ????# #?????### ##g | | ????### ###????## | | ??????# #??????# ### ########## #### | | ??????# #??????## ##?#### #??????## ##??? | | ??????# #???????## #?????# #?????## #???? | | ??????# ##???????# ####### #?????# #???? | | ?###### ##??????# #?????# #???? | | ?# #??????######### #?????## ##???? | | ?# #??????????????# #??????### #???? | | ?# #??????????????# #????????## ##### | | ?### ##??????????????# ###???????### | | ???## #??????????????## ##???????# ##### | | ????# ## #?????????????## ##??????# #???? | | ????# ## #?????????????# #??????# #???? | | ????# ## #????????????## #??????# #???? | | ????# #? #????????????# ##?????# #???? | | ????# #? #????????????# ##????# #???? | | ????# #? #?????????????# ###### #???? | | ????# #? ####???????????# #???? | | ????# #? #???????????## #???? | | ????# #?### #????????????# #### #####???? | +----------------------------------------------------+ Best States ------------- Heat Dissipation 25 Energy Generation 10 Energy Capacity 125 Matter Stores 297 Matter Capacity 300 Sight Range 16 Robot Scan Range 14 Terrain Scan Density 10 Armor Coverage 80 Evasion (%) 62 Item Schematics ----------------- Flight Unit | -10/Materials | Hacked Med. Storage Unit | -10/Materials | Hacked Robot Schematics ------------------ None Fabricated ------------ Nothing Repaired ---------- Nothing Studied --------- None Alien Tech Used ----------------- None Achievements -------------- None Challenges ------------ None Game ------ Seed TerrabombShockboltStick Manual? 0 Play Time 00:22:54 Cumulative 64.1 hours Start 2026.08.17 @ 18:05:07 End 2026.08.17 @ 18:31:46 Sessions 1 Manual Loads 0 Difficulty Rogue Special Mode None Game No. 47 Rogue 47 Adventurer 0 Explorer 0 Win Type - Total 0 Types 0/0/0/0/0/0/0/0/0/0 Lore% 28 Gallery% 33 Achievement% 27 Wizard Run 0 Options --------- Layout 0 ASCII 0 Keyboard 1 Movement Vi Keybinds 0 Fullscreen 2 Font 18/SmallcapsGlow Map View 76x50 Zoom Use 0% Tactical HUD 1 Map Filters NONE Filters NONE Steam 1 RUN: 3a84e5b6-1371-4a36-a705-62f66667e6c0